Workbook

Sheet PREZENCE
B1: PREZENČNÍ LISTINA | D1: Místo soutěže: | F1: Vsetín
D2: Datum: | F2: 2024-04-24
B5: Los | C5: Soutěžní družstvo | D5: Územní odbor | H5: Stanice
B8: 5 | C8: HZS Zlínského kraje | D8: Zlín | H8: CHS Zlín
B9: 8 | C9: HZS Zlínského kraje | D9: Kroměříž | H9: CHS Kroměříž
B10: 7 | C10: HZS Zlínského kraje | D10: Uherské Hradiště | H10: CHS Uherské Hradiště
B11: 9 | C11: HZS Zlínského kraje | D11: Vsetín | H11: Valašské Meziříčí
B12: 4 | C12: HaZZ Trenčianskeho kraja | D12: Považská Bystrica | H12: Okresné riaditeľstvo HaZZ v Považskej Bystrici
B13: 6 | C13: HZS Olomouckého kraje | D13: Prostějov | H13: CHS Prostějov
B14: 1 | C14: HZS Olomouckého kraje | D14: Olomouc | H14: CHS Olomouc
B15: 2 | C15: HZS Olomouckého kraje | D15: Šumperk | H15: HS Zábřeh
B16: 3 | C16: HZS Olomouckého kraje | D16: Přerov | H16: ÚO Přerov
C32: podpis velitele soutěže | H32: Podpis hlavního rozhodčího

Sheet STARTOVKA
A1: STARTOVNÍ LISTINA | C1: Místo soutěže: | E1: =PREZENCE!F1 -> Vsetín
C2: Datum: | E2: =PREZENCE!F2 -> 2024-04-24
A5: Soutěžní družstvo | B5: Územní odbor | C5: Stanice | G5: Los
A8: HZS Olomouckého kraje | B8: Olomouc | C8: CHS Olomouc | G8: 1
A9: HZS Olomouckého kraje | B9: Šumperk | C9: HS Zábřeh | G9: 2
A10: HZS Olomouckého kraje | B10: Přerov | C10: ÚO Přerov | G10: 3
A11: HaZZ Trenčianskeho kraja | B11: Považská Bystrica | C11: Okresné riaditeľstvo HaZZ v Považskej Bystrici | G11: 4
A12: HZS Zlínského kraje | B12: Zlín | C12: CHS Zlín | G12: 5
A13: HZS Olomouckého kraje | B13: Prostějov | C13: CHS Prostějov | G13: 6
A14: HZS Zlínského kraje | B14: Uherské Hradiště | C14: CHS Uherské Hradiště | G14: 7
A15: HZS Zlínského kraje | B15: Kroměříž | C15: CHS Kroměříž | G15: 8
A16: HZS Zlínského kraje | B16: Vsetín | C16: CHS Valašské Meziříčí | G16: 9
A32: podpis velitele soutěže | D32: podpis hlavního rozhodčího

Sheet ZADANI
A1: SOUTĚŽNÍ TÝM | B1: HZS Olomouckého kraje, CHS Olomouc | C1: HZS Olomouckého kraje, HS Zábřeh | D1: HZS Olomouckého kraje, ÚO Přerov | E1: HaZZ Trenčianskeho kraja, Okresné riaditeľstvo HaZZ v Považskej Bystrici | F1: HZS Zlínského kraje, CHS Zlín | G1: HZS Olomouckého kraje, CHS Prostějov | H1: HZS Zlínského kraje, CHS Uherské Hradiště | I1: HZS Zlínského kraje, CHS Kroměříž | J1: HZS Zlínského kraje, CHS Valašské Meziříčí
A2: TAKTIKA PROVEDENÍ ZÁSAHU
A3: Přístup týmu a průzkum
A4: Rizika a nebezpečí rozpoznána a vyhodnocena | B4: 3 | C4: 5 | D4: 8 | E4: 7 | F4: 7 | G4: 4 | H4: 3 | I4: 5 | J4: 7
A5: Celkový vnitřní a vnější průzkum | B5: 3 | C5: 6 | D5: 9 | E5: 7 | F5: 5 | G5: 7 | H5: 3 | I5: 7 | J5: 7
A6: Výchozí priority sděleny členům | B6: 5 | C6: 6 | D6: 10 | E6: 6 | F6: 8 | G6: 7 | H6: 5 | I6: 8 | J6: 8
A7: Plánování
A8: Plán vyproštění | B8: 4 | C8: 8 | D8: 9 | E8: 8 | F8: 8 | G8: 8 | H8: 4 | I8: 7 | J8: 7
A9: Dodržení plánu | B9: 6 | C9: 8 | D9: 10 | E9: 8 | F9: 8 | G9: 8 | H9: 5 | I9: 8 | J9: 8
A10: Povely zadané a pochopené | B10: 6 | C10: 7 | D10: 10 | E10: 6 | F10: 7 | G10: 8 | H10: 5 | I10: 8 | J10: 7
A11: Velení
A12: Příkazy a velení, správná pozice | B12: 4 | C12: 5 | D12: 10 | E12: 5 | F12: 7 | G12: 4 | H12: 5 | I12: 5 | J12: 8
A13: Správný postup | B13: 6 | C13: 6 | D13: 9 | E13: 6 | F13: 5 | G13: 7 | H13: 3 | I13: 3 | J13: 4
A14: Postup velitele | B14: 6 | C14: 8 | D14: 10 | E14: 5 | F14: 8 | G14: 6 | H14: 3 | I14: 6 | J14: 7
A15: Spolupráce a komunikace
A16: Celková komunikace týmu | B16: 6 | C16: 7 | D16: 10 | E16: 4 | F16: 8 | G16: 6 | H16: 5 | I16: 7 | J16: 8
A17: Operativní schopnosti | B17: 3 | C17: 5 | D17: 10 | E17: 4 | F17: 5 | G17: 5 | H17: 4 | I17: 3 | J17: 7
A18: Komunikace s KOPIS | B18: 4 | C18: 6 | D18: 9 | E18: 7 | F18: 7 | G18: 5 | H18: 4 | I18: 8 | J18: 9
A19: Protipožární zabezpečení a úniky
A20: Zajištění proti požáru | B20: 4 | C20: 7 | D20: 9 | E20: 7 | F20: 7 | G20: 7 | H20: 5 | I20: 7 | J20: 7
A21: Zabezpečení úniku kapalin | B21: 4 | C21: 2 | D21: 9 | E21: 7 | F21: 3 | G21: 8 | H21: 7 | I21: 5 | J21: 8
A22: Řešení AKU a airbagů | B22: 4 | C22: 5 | D22: 7 | E22: 8 | F22: 3 | G22: 9 | H22: 5 | I22: 5 | J22: 3
A23: Bezpečnost
A24: Použití OOP | B24: 7 | C24: 6 | D24: 9 | E24: 8 | F24: 8 | G24: 9 | H24: 7 | I24: 7 | J24: 7
A25: Dodržení bezpečné pracovní zóny | B25: 8 | C25: 6 | D25: 6 | E25: 5 | F25: 7 | G25: 8 | H25: 6 | I25: 7 | J25: 7
A26: Označení místa nehody | B26: 8 | C26: 6 | D26: 8 | E26: 8 | F26: 8 | G26: 8 | H26: 7 | I26: 6 | J26: 8
A27: Obhajoba postupu (0 - 5 bodů)
A28: Kompenzace složitosti scénáře (0 - 10 bodů) | B28: 5
A29: SOUČET BODŮ CELKEM (max. 195 bodů) | B29: =SUM(B2:B28) -> 96 | C29: 109 | D29: 162 | E29: 116 | F29: 119 | G29: 124 | H29: 86 | I29: 112 | J29: 127 | K29: =SUM(K2:K28) -> 0 | L29: 0 | M29: 0 | N29: 0 | O29: 0 | P29: 0 | Q29: 0 | R29: 0 | S29: 0 | T29: 0 | U29: 0
A30: POŘADÍ | B30: =IF(B$29>0,SUMPRODUCT(($B$29:$U$29>=B$29)/COUNTIF($B$29:$U$29,""&$B$29:$U$29)),"") -> 8 | C30: =IF(C$29>0,SUMPRODUCT(($B$29:$U$29>=C$29)/COUNTIF($B$29:$U$29,""&$B$29:$U$29)),"") -> 7 | D30: 1 | E30: 5 | F30: 4 | G30: 3 | H30: 9 | I30: 6 | J30: 2
A31: TECHNIKA PROVEDENÍ ZÁSAHU
A32: Stabilizace a příprava vozidla (sklo)
A33: Stabilizace, rychlost a smysl | B33: 2 | C33: 5 | D33: 8 | E33: 5 | F33: 7 | G33: 2 | H33: 6 | I33: 2 | J33: 7
A34: Pravidelná kontrola | B34: 0 | C34: 6 | D34: 7 | E34: 6 | F34: 7 | G34: 4 | H34: 5 | I34: 5 | J34: 6
A35: Řešení skla, načasování a smysl | B35: 7 | C35: 5 | D35: 8 | E35: 5 | F35: 7 | G35: 0 | H35: 9 | I35: 5 | J35: 5
A36: Ochrana zraněné osoby
A37: Použití ochranných prostředků | B37: 3 | C37: 5 | D37: 10 | E37: 8 | F37: 8 | G37: 7 | H37: 7 | I37: 7 | J37: 8
A38: Vyhodnocení rizik uvnitř vozidla, reakce na ně | B38: 7 | C38: 8 | D38: 10 | E38: 6 | F38: 8 | G38: 8 | H38: 0 | I38: 7 | J38: 6
A39: Ochrana dle vzniklé situace | B39: 3 | C39: 5 | D39: 10 | E39: 7 | F39: 8 | G39: 7 | H39: 8 | I39: 6 | J39: 8
A40: Vytvoření prostoru pro přístup a manipulaci se zraněnou osobou
A41: Včasný počáteční přístup | B41: 3 | C41: 3 | D41: 10 | E41: 8 | F41: 10 | G41: 10 | H41: 3 | I41: 0 | J41: 3
A42: Účinný postup vyproštění | B42: 6 | C42: 6 | D42: 10 | E42: 7 | F42: 10 | G42: 7 | H42: 8 | I42: 6 | J42: 9
A43: Výsledný vytvořený prostor | B43: 6 | C43: 5 | D43: 10 | E43: 9 | F43: 10 | G43: 8 | H43: 8 | I43: 5 | J43: 9
A44: Ovládání nářadí
A45: Vyprošťovací nářadí a správná technika vytvoření prostoru | B45: 5 | C45: 8 | D45: 10 | E45: 9 | F45: 10 | G45: 8 | H45: 9 | I45: 5 | J45: 6
A46: Ovládání nářadí, volba použití (úhlů) | B46: 6 | C46: 8 | D46: 10 | E46: 5 | F46: 10 | G46: 8 | H46: 9 | I46: 8 | J46: 3
A47: Znalost nebezpečí, rozpoznání, identifikace, následné jednání | B47: 6 | C47: 8 | D47: 10 | E47: 5 | F47: 10 | G47: 8 | H47: 9 | I47: 8 | J47: 8
A48: Uvolnění, vyproštění a transport zraněné osoby
A49: Přijatelné prostředí, žádné nežádoucí pohyby | B49: 3 | C49: 7 | D49: 8 | E49: 4 | F49: 10 | G49: 4 | H49: 9 | I49: 9 | J49: 9
A50: Závěrečné vyproštění (vytažení) | B50: 3 | C50: 6 | D50: 8 | E50: 7 | F50: 10 | G50: 7 | H50: 9 | I50: 6 | J50: 9
A51: Ochrana zraněného | B51: 3 | C51: 5 | D51: 10 | E51: 8 | F51: 8 | G51: 7 | H51: 8 | I51: 6 | J51: 8
A52: Bezpečnost a týmová spolupráce při vyprošťování
A53: Změna postupu, příprava a provedení | B53: 5 | C53: 6 | D53: 10 | E53: 6 | F53: 6 | G53: 7 | H53: 5 | I53: 5 | J53: 5
A54: Bezpečnost a OOP | B54: 7 | C54: 5 | D54: 10 | E54: 7 | F54: 10 | G54: 8 | H54: 0 | I54: 3 | J54: 5
A55: Práce s nástroji | B55: 7 | C55: 8 | D55: 10 | E55: 5 | F55: 10 | G55: 8 | H55: 9 | I55: 8 | J55: 5
A56: Obhajoba postupu (0 - 5 bodů)
A57: Kompenzace složitosti scénáře (0 - 10 bodů)
A58: SOUČET BODŮ CELKEM (max. 195 bodů) | B58: =SUM(B31:B57) -> 82 | C58: 109 | D58: 169 | E58: 117 | F58: 159 | G58: 118 | H58: 121 | I58: 101 | J58: 119 | K58: 0 | L58: =SUM(L31:L57) -> 0 | M58: 0 | N58: 0 | O58: 0 | P58: 0 | Q58: 0 | R58: 0 | S58: 0 | T58: 0 | U58: 0
A59: POŘADÍ | B59: =IF(B$58>0,SUMPRODUCT(($B$58:$U$58>=B$58)/COUNTIF($B$58:$U$58,""&$B$58:$U$58)),"") -> 9 | C59: =IF(C$58>0,SUMPRODUCT(($B$58:$U$58>=C$58)/COUNTIF($B$58:$U$58,""&$B$58:$U$58)),"") -> 7 | D59: 1 | E59: 6 | F59: 2 | G59: 5 | H59: 3 | I59: 8 | J59: 4
A60: PRVNÍ PŘEDLÉKAŘSKÁ POMOC
A61: Přístup a kontakt
A62: Průzkum, oslovení (nehýbat hlavou), představení, bezpečnost zdravotníka - částečná stabilizace | B62: 5 | C62: 10 | D62: 10 | E62: 3 | F62: 10 | G62: 4 | H62: 2 | I62: 0 | J62: 5
A63: Život zachraňující úkony, záklon hlavy, uklidnění | B63: 3 | C63: 0 | D63: 10 | E63: 9 | F63: 10 | G63: 10 | H63: 0 | I63: 0 | J63: 7
A64: Ohrožení zdravotníka a zraněného, bezpečný vstup (sklo, ostré hrany, končetiny z vozu), přístup | B64: 10 | C64: 2 | D64: 5 | E64: 10 | F64: 10 | G64: 10 | H64: 3 | I64: 5 | J64: 10
A65: Vyšetření a zajištění
A66: Fixace páteře, nasazení krčního límce jde-li (rukavice) | B66: 5 | C66: 2 | D66: 7 | E66: 0 | F66: 10 | G66: 4 | H66: 0 | I66: 8 | J66: 7
A67: Zajištění dýchacích cest, podání kyslíku, tepelný komfort | B67: 10 | C67: 8 | D67: 7 | E67: 5 | F67: 10 | G67: 9 | H67: 5 | I67: 10 | J67: 10
A68: Celková prohlídka zraněného | B68: 7 | C68: 8 | D68: 6 | E68: 8 | F68: 10 | G68: 10 | H68: 5 | I68: 10 | J68: 10
A69: Vybavení
A70: Zdravotní pomůcky - manipulace, zacházení | B70: 10 | C70: 10 | D70: 6 | E70: 3 | F70: 7 | G70: 10 | H70: 7 | I70: 10 | J70: 10
A71: Umí použít pomůcky - monitoring během zásahu + pulzní oxymetr | B71: 10 | C71: 10 | D71: 3 | E71: 9 | F71: 10 | G71: 10 | H71: 10 | I71: 6 | J71: 10
A72: Ochrana zraněné osoby | B72: 8 | C72: 5 | D72: 10 | E72: 7 | F72: 3 | G72: 10 | H72: 5 | I72: 10 | J72: 10
A73: Vyproštění
A74: Příprava zraněného na transport, polohování, naložení na desku | B74: 6 | C74: 7 | D74: 10 | E74: 6 | F74: 6 | G74: 4 | H74: 7 | I74: 10 | J74: 4
A75: Transport zraněného, deska, vyproštění, transport z vozidla | B75: 10 | C75: 9 | D75: 5 | E75: 0 | F75: 6 | G75: 4 | H75: 4 | I75: 10 | J75: 4
A76: Bezpečnost zraněného | B76: 10 | C76: 5 | D76: 5 | E76: 10 | F76: 10 | G76: 5 | H76: 9 | I76: 10 | J76: 4
A77: Komunikace
A78: S velitelem, s týmem - koordinace | B78: 6 | C78: 10 | D78: 10 | E78: 7 | F78: 10 | G78: 10 | H78: 10 | I78: 5 | J78: 10
A79: Se zraněným | B79: 6 | C79: 10 | D79: 7 | E79: 10 | F79: 10 | G79: 10 | H79: 10 | I79: 10 | J79: 7
A80: Bonus zdravotníka | B80: 5 | C80: 5 | D80: 5 | E80: 5 | F80: 5 | G80: 5 | H80: 5 | I80: 5 | J80: 5
A81: Předání
A82: Stav před příjezdem, při předání | B82: 3 | C82: 3 | D82: 8 | E82: 0 | F82: 10 | G82: 10 | H82: 4 | I82: 0 | J82: 7
A83: Výsledek vyšetření a zajištění zraněného | B83: 10 | C83: 3 | D83: 6 | E83: 8 | F83: 5 | G83: 10 | H83: 5 | I83: 5 | J83: 10
A84: Psychologické aspekty, hodnocení figuranta | B84: 8 | C84: 8 | D84: 9 | E84: 9 | F84: 10 | G84: 10 | H84: 9 | I84: 8 | J84: 9
A85: Obhajoba postupu (0 - 5 bodů) | I85: 4
A86: Kompenzace složitosti scénáře (0 - 10 bodů) | B86: 5
A87: SOUČET BODŮ CELKEM (max. 195 bodů) | B87: =SUM(B60:B86) -> 137 | C87: 115 | D87: 129 | E87: 109 | F87: 152 | G87: 145 | H87: 100 | I87: 126 | J87: 139 | K87: 0 | L87: =SUM(L60:L86) -> 0 | M87: 0 | N87: 0 | O87: 0 | P87: 0 | Q87: 0 | R87: 0 | S87: 0 | T87: 0 | U87: 0
A88: POŘADÍ | B88: =IF(B$87>0,SUMPRODUCT(($B$87:$U$87>=B$87)/COUNTIF($B$87:$U$87,""&$B$87:$U$87)),"") -> 4 | C88: =IF(C$87>0,SUMPRODUCT(($B$87:$U$87>=C$87)/COUNTIF($B$87:$U$87,""&$B$87:$U$87)),"") -> 7 | D88: 5 | E88: 8 | F88: 1 | G88: 2 | H88: 9 | I88: 6 | J88: 3
A89: DOSAŽENÝ ČAS
A90: Minuty | B90: 18 | C90: 19 | D90: 17 | E90: 18 | F90: 18 | G90: 19 | H90: 19 | I90: 19 | J90: 19
A91: Sekundy | B91: 41 | C91: 33 | D91: 45 | E91: 47 | F91: 53 | G91: 30 | H91: 34 | I91: 24 | J91: 57
A92: Body za čas | B92: =IF(AND(B$90>14,B$90<18),(CEILING(((B$90-15)*60+B$91)/20,1)),0)+IF(AND(B$90>17,B$90<20),9+3*(CEILING(((B$90-18)*60+B$91)/20,1)),0) -> 18 | C92: =IF(AND(C$90>14,C$90<18),(CEILING(((C$90-15)*60+C$91)/20,1)),0)+IF(AND(C$90>17,C$90<20),9+3*(CEILING(((C$90-18)*60+C$91)/20,1)),0) -> 24 | D92: 9 | E92: 18 | F92: 18 | G92: 24 | H92: 24 | I92: 24 | J92: 27 | K92: 0 | L92: 0 | M92: 0 | N92: 0 | O92: 0 | P92: 0 | Q92: 0 | R92: 0 | S92: 0 | T92: 0 | U92: 0
A93: CELKOVÉ BODY | B93: =IF(B$92="N",0,IF(B$92<(B$29+B$58+B$87),B$29+B$58+B$87-B$92,0)) -> 297 | C93: =IF(C$92="N",0,IF(C$92<(C$29+C$58+C$87),C$29+C$58+C$87-C$92,0)) -> 309 | D93: 451 | E93: 324 | F93: 412 | G93: 363 | H93: 283 | I93: 315 | J93: 358 | K93: 0 | L93: 0 | M93: 0 | N93: 0 | O93: 0 | P93: 0 | Q93: 0 | R93: 0 | S93: 0 | T93: 0 | U93: 0

Sheet VYHODNOCENI
A1: CELKOVÉ POŘADÍ | E1: Místo soutěže: | G1: Valašské Meziříčí
E2: Datum: | G2: 2024-05-16
A5: Soutěžní tým | B5: Čas | C5: Hodnocení | J5: Celkové body | K5: Čas v sekundách | L5: Průměr pořadí | M5: CELKOVÉ POŘADÍ
C6: body za čas | D6: Taktika provedení zásahu | F6: Technika provedení zásahu | H6: První předlékařská pomoc
D7: body | E7: pořadí | F7: body | G7: pořadí | H7: body | I7: pořadí
A8: =ZADANI!$D$1 -> HZS Olomouckého kraje, ÚO Přerov | B8: =IF(AND(ISBLANK(ZADANI!$D$90),ISBLANK(ZADANI!$D$91)),"",ZADANI!$D$90&" : "&ZADANI!$D$91) -> 17 : 45 | C8: =ZADANI!$D$92 -> 9 | D8: =ZADANI!$D$29 -> 162 | E8: =ZADANI!$D$30 -> 1 | F8: =ZADANI!$D$58 -> 169 | G8: =ZADANI!$D$59 -> 1 | H8: =ZADANI!$D$87 -> 129 | I8: =ZADANI!$D$88 -> 5 | J8: =ZADANI!$D$93 -> 451 | K8: =IF($J8=0,"",ZADANI!$D$90*60+ZADANI!$D$91) -> 1065 | L8: =IF($J8=0,"",ROUND(($E8+$G8+$I8)/3,3)) -> 2.333 | M8: =IF($J8=0,"",RANK($J8,$J$8:$J$27,0)) -> 1 | N8: 3
A9: =ZADANI!$F$1 -> HZS Zlínského kraje, CHS Zlín | B9: =IF(AND(ISBLANK(ZADANI!$F$90),ISBLANK(ZADANI!$F$91)),"",ZADANI!$F$90&" : "&ZADANI!$F$91) -> 18 : 53 | C9: =ZADANI!$F$92 -> 18 | D9: =ZADANI!$F$29 -> 119 | E9: =ZADANI!$F$30 -> 4 | F9: =ZADANI!$F$58 -> 159 | G9: =ZADANI!$F$59 -> 2 | H9: =ZADANI!$F$87 -> 152 | I9: =ZADANI!$F$88 -> 1 | J9: =ZADANI!$F$93 -> 412 | K9: =IF($J9=0,"",ZADANI!$F$90*60+ZADANI!$F$91) -> 1133 | L9: =IF($J9=0,"",ROUND(($E9+$G9+$I9)/3,3)) -> 2.333 | M9: =IF($J9=0,"",RANK($J9,$J$8:$J$27,0)) -> 2 | N9: 5
A10: =ZADANI!$G$1 -> HZS Olomouckého kraje, CHS Prostějov | B10: =IF(AND(ISBLANK(ZADANI!$G$90),ISBLANK(ZADANI!$G$91)),"",ZADANI!$G$90&" : "&ZADANI!$G$91) -> 19 : 30 | C10: =ZADANI!$G$92 -> 24 | D10: =ZADANI!$G$29 -> 124 | E10: =ZADANI!$G$30 -> 3 | F10: =ZADANI!$G$58 -> 118 | G10: =ZADANI!$G$59 -> 5 | H10: =ZADANI!$G$87 -> 145 | I10: =ZADANI!$G$88 -> 2 | J10: =ZADANI!$G$93 -> 363 | K10: =IF($J10=0,"",ZADANI!$G$90*60+ZADANI!$G$91) -> 1170 | L10: =IF($J10=0,"",ROUND(($E10+$G10+$I10)/3,3)) -> 3.333 | M10: =IF($J10=0,"",RANK($J10,$J$8:$J$27,0)) -> 3 | N10: 6
A11: =ZADANI!$J$1 -> HZS Zlínského kraje, CHS Valašské Meziříčí | B11: =IF(AND(ISBLANK(ZADANI!$J$90),ISBLANK(ZADANI!$J$91)),"",ZADANI!$J$90&" : "&ZADANI!$J$91) -> 19 : 57 | C11: =ZADANI!$J$92 -> 27 | D11: =ZADANI!$J$29 -> 127 | E11: =ZADANI!$J$30 -> 2 | F11: =ZADANI!$J$58 -> 119 | G11: =ZADANI!$J$59 -> 4 | H11: =ZADANI!$J$87 -> 139 | I11: =ZADANI!$J$88 -> 3 | J11: =ZADANI!$J$93 -> 358 | K11: =IF($J11=0,"",ZADANI!$J$90*60+ZADANI!$J$91) -> 1197 | L11: =IF($J11=0,"",ROUND(($E11+$G11+$I11)/3,3)) -> 3 | M11: =IF($J11=0,"",RANK($J11,$J$8:$J$27,0)) -> 4 | N11: 9
A12: =ZADANI!$E$1 -> HaZZ Trenčianskeho kraja, Okresné riaditeľstvo HaZZ v Považskej Bystrici | B12: =IF(AND(ISBLANK(ZADANI!$E$90),ISBLANK(ZADANI!$E$91)),"",ZADANI!$E$90&" : "&ZADANI!$E$91) -> 18 : 47 | C12: =ZADANI!$E$92 -> 18 | D12: =ZADANI!$E$29 -> 116 | E12: =ZADANI!$E$30 -> 5 | F12: =ZADANI!$E$58 -> 117 | G12: =ZADANI!$E$59 -> 6 | H12: =ZADANI!$E$87 -> 109 | I12: =ZADANI!$E$88 -> 8 | J12: =ZADANI!$E$93 -> 324 | K12: =IF($J12=0,"",ZADANI!$E$90*60+ZADANI!$E$91) -> 1127 | L12: =IF($J12=0,"",ROUND(($E12+$G12+$I12)/3,3)) -> 6.333 | M12: =IF($J12=0,"",RANK($J12,$J$8:$J$27,0)) -> 5 | N12: 4
A13: =ZADANI!$I$1 -> HZS Zlínského kraje, CHS Kroměříž | B13: =IF(AND(ISBLANK(ZADANI!$I$90),ISBLANK(ZADANI!$I$91)),"",ZADANI!$I$90&" : "&ZADANI!$I$91) -> 19 : 24 | C13: =ZADANI!$I$92 -> 24 | D13: =ZADANI!$I$29 -> 112 | E13: =ZADANI!$I$30 -> 6 | F13: =ZADANI!$I$58 -> 101 | G13: =ZADANI!$I$59 -> 8 | H13: =ZADANI!$I$87 -> 126 | I13: =ZADANI!$I$88 -> 6 | J13: =ZADANI!$I$93 -> 315 | K13: =IF($J13=0,"",ZADANI!$I$90*60+ZADANI!$I$91) -> 1164 | L13: =IF($J13=0,"",ROUND(($E13+$G13+$I13)/3,3)) -> 6.667 | M13: =IF($J13=0,"",RANK($J13,$J$8:$J$27,0)) -> 6 | N13: 8
A14: =ZADANI!$C$1 -> HZS Olomouckého kraje, HS Zábřeh | B14: =IF(AND(ISBLANK(ZADANI!$C$90),ISBLANK(ZADANI!$C$91)),"",ZADANI!$C$90&" : "&ZADANI!$C$91) -> 19 : 33 | C14: =ZADANI!$C$92 -> 24 | D14: =ZADANI!$C$29 -> 109 | E14: =ZADANI!$C$30 -> 7 | F14: =ZADANI!$C$58 -> 109 | G14: =ZADANI!$C$59 -> 7 | H14: =ZADANI!$C$87 -> 115 | I14: =ZADANI!$C$88 -> 7 | J14: =ZADANI!$C$93 -> 309 | K14: =IF($J14=0,"",ZADANI!$C$90*60+ZADANI!$C$91) -> 1173 | L14: =IF($J14=0,"",ROUND(($E14+$G14+$I14)/3,3)) -> 7 | M14: =IF($J14=0,"",RANK($J14,$J$8:$J$27,0)) -> 7 | N14: 2
A15: =ZADANI!$B$1 -> HZS Olomouckého kraje, CHS Olomouc | B15: =IF(AND(ISBLANK(ZADANI!$B$90),ISBLANK(ZADANI!$B$91)),"",ZADANI!$B$90&" : "&ZADANI!$B$91) -> 18 : 41 | C15: =ZADANI!$B$92 -> 18 | D15: =ZADANI!$B$29 -> 96 | E15: =ZADANI!$B$30 -> 8 | F15: =ZADANI!$B$58 -> 82 | G15: =ZADANI!$B$59 -> 9 | H15: =ZADANI!$B$87 -> 137 | I15: =ZADANI!$B$88 -> 4 | J15: =ZADANI!$B$93 -> 297 | K15: =IF($J15=0,"",ZADANI!$B$90*60+ZADANI!$B$91) -> 1121 | L15: =IF($J15=0,"",ROUND(($E15+$G15+$I15)/3,3)) -> 7 | M15: =IF($J15=0,"",RANK($J15,$J$8:$J$27,0)) -> 8 | N15: 1
A16: =ZADANI!$H$1 -> HZS Zlínského kraje, CHS Uherské Hradiště | B16: =IF(AND(ISBLANK(ZADANI!$H$90),ISBLANK(ZADANI!$H$91)),"",ZADANI!$H$90&" : "&ZADANI!$H$91) -> 19 : 34 | C16: =ZADANI!$H$92 -> 24 | D16: =ZADANI!$H$29 -> 86 | E16: =ZADANI!$H$30 -> 9 | F16: =ZADANI!$H$58 -> 121 | G16: =ZADANI!$H$59 -> 3 | H16: =ZADANI!$H$87 -> 100 | I16: =ZADANI!$H$88 -> 9 | J16: =ZADANI!$H$93 -> 283 | K16: =IF($J16=0,"",ZADANI!$H$90*60+ZADANI!$H$91) -> 1174 | L16: =IF($J16=0,"",ROUND(($E16+$G16+$I16)/3,3)) -> 7 | M16: =IF($J16=0,"",RANK($J16,$J$8:$J$27,0)) -> 9 | N16: 7
A17: =ZADANI!$K$1 -> 0 | B17: =IF(AND(ISBLANK(ZADANI!$K$90),ISBLANK(ZADANI!$K$91)),"",ZADANI!$K$90&" : "&ZADANI!$K$91) ->  | C17: =ZADANI!$K$92 -> 0 | D17: =ZADANI!$K$29 -> 0 | E17: =ZADANI!$K$30 ->  | F17: =ZADANI!$K$58 -> 0 | G17: =ZADANI!$K$59 ->  | H17: =ZADANI!$K$87 -> 0 | I17: =ZADANI!$K$88 ->  | J17: =ZADANI!$K$93 -> 0 | K17: =IF($J17=0,"",ZADANI!$K$90*60+ZADANI!$K$91) ->  | L17: =IF($J17=0,"",ROUND(($E17+$G17+$I17)/3,3)) ->  | M17: =IF($J17=0,"",RANK($J17,$J$8:$J$27,0)) ->  | N17: 10
A18: =ZADANI!$L$1 -> 0 | B18: =IF(AND(ISBLANK(ZADANI!$L$90),ISBLANK(ZADANI!$L$91)),"",ZADANI!$L$90&" : "&ZADANI!$L$91) ->  | C18: =ZADANI!$L$92 -> 0 | D18: =ZADANI!$L$29 -> 0 | E18: =ZADANI!$L$30 ->  | F18: =ZADANI!$L$58 -> 0 | G18: =ZADANI!$L$59 ->  | H18: =ZADANI!$L$87 -> 0 | I18: =ZADANI!$L$88 ->  | J18: =ZADANI!$L$93 -> 0 | K18: =IF($J18=0,"",ZADANI!$L$90*60+ZADANI!$L$91) ->  | L18: =IF($J18=0,"",ROUND(($E18+$G18+$I18)/3,3)) ->  | M18: =IF($J18=0,"",RANK($J18,$J$8:$J$27,0)) ->  | N18: 11
A19: =ZADANI!$M$1 -> 0 | B19: =IF(AND(ISBLANK(ZADANI!$M$90),ISBLANK(ZADANI!$M$91)),"",ZADANI!$M$90&" : "&ZADANI!$M$91) ->  | C19: =ZADANI!$M$92 -> 0 | D19: =ZADANI!$M$29 -> 0 | E19: =ZADANI!$M$30 ->  | F19: =ZADANI!$M$58 -> 0 | G19: =ZADANI!$M$59 ->  | H19: =ZADANI!$M$87 -> 0 | I19: =ZADANI!$M$88 ->  | J19: =ZADANI!$M$93 -> 0 | K19: =IF($J19=0,"",ZADANI!$M$90*60+ZADANI!$M$91) ->  | L19: =IF($J19=0,"",ROUND(($E19+$G19+$I19)/3,3)) ->  | M19: =IF($J19=0,"",RANK($J19,$J$8:$J$27,0)) ->  | N19: 12
A20: =ZADANI!$N$1 -> 0 | B20: =IF(AND(ISBLANK(ZADANI!$N$90),ISBLANK(ZADANI!$N$91)),"",ZADANI!$N$90&" : "&ZADANI!$N$91) ->  | C20: =ZADANI!$N$92 -> 0 | D20: =ZADANI!$N$29 -> 0 | E20: =ZADANI!$N$30 ->  | F20: =ZADANI!$N$58 -> 0 | G20: =ZADANI!$N$59 ->  | H20: =ZADANI!$N$87 -> 0 | I20: =ZADANI!$N$88 ->  | J20: =ZADANI!$N$93 -> 0 | K20: =IF($J20=0,"",ZADANI!$N$90*60+ZADANI!$N$91) ->  | L20: =IF($J20=0,"",ROUND(($E20+$G20+$I20)/3,3)) ->  | M20: =IF($J20=0,"",RANK($J20,$J$8:$J$27,0)) ->  | N20: 13
A21: =ZADANI!$O$1 -> 0 | B21: =IF(AND(ISBLANK(ZADANI!$O$90),ISBLANK(ZADANI!$O$91)),"",ZADANI!$O$90&" : "&ZADANI!$O$91) ->  | C21: =ZADANI!$O$92 -> 0 | D21: =ZADANI!$O$29 -> 0 | E21: =ZADANI!$O$30 ->  | F21: =ZADANI!$O$58 -> 0 | G21: =ZADANI!$O$59 ->  | H21: =ZADANI!$O$87 -> 0 | I21: =ZADANI!$O$88 ->  | J21: =ZADANI!$O$93 -> 0 | K21: =IF($J21=0,"",ZADANI!$O$90*60+ZADANI!$O$91) ->  | L21: =IF($J21=0,"",ROUND(($E21+$G21+$I21)/3,3)) ->  | M21: =IF($J21=0,"",RANK($J21,$J$8:$J$27,0)) ->  | N21: 14
A22: =ZADANI!$P$1 -> 0 | B22: =IF(AND(ISBLANK(ZADANI!$P$90),ISBLANK(ZADANI!$P$91)),"",ZADANI!$P$90&" : "&ZADANI!$P$91) ->  | C22: =ZADANI!$P$92 -> 0 | D22: =ZADANI!$P$29 -> 0 | E22: =ZADANI!$P$30 ->  | F22: =ZADANI!$P$58 -> 0 | G22: =ZADANI!$P$59 ->  | H22: =ZADANI!$P$87 -> 0 | I22: =ZADANI!$P$88 ->  | J22: =ZADANI!$P$93 -> 0 | K22: =IF($J22=0,"",ZADANI!$P$90*60+ZADANI!$P$91) ->  | L22: =IF($J22=0,"",ROUND(($E22+$G22+$I22)/3,3)) ->  | M22: =IF($J22=0,"",RANK($J22,$J$8:$J$27,0)) ->  | N22: 15
A23: =ZADANI!$Q$1 -> 0 | B23: =IF(AND(ISBLANK(ZADANI!$Q$90),ISBLANK(ZADANI!$Q$91)),"",ZADANI!$Q$90&" : "&ZADANI!$Q$91) ->  | C23: =ZADANI!$Q$92 -> 0 | D23: =ZADANI!$Q$29 -> 0 | E23: =ZADANI!$Q$30 ->  | F23: =ZADANI!$Q$58 -> 0 | G23: =ZADANI!$Q$59 ->  | H23: =ZADANI!$Q$87 -> 0 | I23: =ZADANI!$Q$88 ->  | J23: =ZADANI!$Q$93 -> 0 | K23: =IF($J23=0,"",ZADANI!$Q$90*60+ZADANI!$Q$91) ->  | L23: =IF($J23=0,"",ROUND(($E23+$G23+$I23)/3,3)) ->  | M23: =IF($J23=0,"",RANK($J23,$J$8:$J$27,0)) ->  | N23: 16
A24: =ZADANI!$R$1 -> 0 | B24: =IF(AND(ISBLANK(ZADANI!$R$90),ISBLANK(ZADANI!$R$91)),"",ZADANI!$R$90&" : "&ZADANI!$R$91) ->  | C24: =ZADANI!$R$92 -> 0 | D24: =ZADANI!$R$29 -> 0 | E24: =ZADANI!$R$30 ->  | F24: =ZADANI!$R$58 -> 0 | G24: =ZADANI!$R$59 ->  | H24: =ZADANI!$R$87 -> 0 | I24: =ZADANI!$R$88 ->  | J24: =ZADANI!$R$93 -> 0 | K24: =IF($J24=0,"",ZADANI!$R$90*60+ZADANI!$R$91) ->  | L24: =IF($J24=0,"",ROUND(($E24+$G24+$I24)/3,3)) ->  | M24: =IF($J24=0,"",RANK($J24,$J$8:$J$27,0)) ->  | N24: 17
A25: =ZADANI!$S$1 -> 0 | B25: =IF(AND(ISBLANK(ZADANI!$S$90),ISBLANK(ZADANI!$S$91)),"",ZADANI!$S$90&" : "&ZADANI!$S$91) ->  | C25: =ZADANI!$S$92 -> 0 | D25: =ZADANI!$S$29 -> 0 | E25: =ZADANI!$S$30 ->  | F25: =ZADANI!$S$58 -> 0 | G25: =ZADANI!$S$59 ->  | H25: =ZADANI!$S$87 -> 0 | I25: =ZADANI!$S$88 ->  | J25: =ZADANI!$S$93 -> 0 | K25: =IF($J25=0,"",ZADANI!$S$90*60+ZADANI!$S$91) ->  | L25: =IF($J25=0,"",ROUND(($E25+$G25+$I25)/3,3)) ->  | M25: =IF($J25=0,"",RANK($J25,$J$8:$J$27,0)) ->  | N25: 18
A26: =ZADANI!$T$1 -> 0 | B26: =IF(AND(ISBLANK(ZADANI!$T$90),ISBLANK(ZADANI!$T$91)),"",ZADANI!$T$90&" : "&ZADANI!$T$91) ->  | C26: =ZADANI!$T$92 -> 0 | D26: =ZADANI!$T$29 -> 0 | E26: =ZADANI!$T$30 ->  | F26: =ZADANI!$T$58 -> 0 | G26: =ZADANI!$T$59 ->  | H26: =ZADANI!$T$87 -> 0 | I26: =ZADANI!$T$88 ->  | J26: =ZADANI!$T$93 -> 0 | K26: =IF($J26=0,"",ZADANI!$T$90*60+ZADANI!$T$91) ->  | L26: =IF($J26=0,"",ROUND(($E26+$G26+$I26)/3,3)) ->  | M26: =IF($J26=0,"",RANK($J26,$J$8:$J$27,0)) ->  | N26: 19
A27: =ZADANI!$U$1 -> 0 | B27: =IF(AND(ISBLANK(ZADANI!$U$90),ISBLANK(ZADANI!$U$91)),"",ZADANI!$U$90&" : "&ZADANI!$U$91) ->  | C27: =ZADANI!$U$92 -> 0 | D27: =ZADANI!$U$29 -> 0 | E27: =ZADANI!$U$30 ->  | F27: =ZADANI!$U$58 -> 0 | G27: =ZADANI!$U$59 ->  | H27: =ZADANI!$U$87 -> 0 | I27: =ZADANI!$U$88 ->  | J27: =ZADANI!$U$93 -> 0 | K27: =IF($J27=0,"",ZADANI!$T$90*60+ZADANI!$T$91) ->  | L27: =IF($J27=0,"",ROUND(($E27+$G27+$I27)/3,3)) ->  | M27: =IF($J27=0,"",RANK($J27,$J$8:$J$27,0)) ->  | N27: 20
A32: podpis velitele soutěže | F32: podpis hlavního rozhodčího
